fUST/lending_fUST_20240122
["ID","MTS","AMOUNT","RATE_DAILY","PERIOD"]
[312423683,1705870238973,-500.0,0.00027397,2]
[312423685,1705870238982,-500.0,0.00027397,2]
[312423687,1705870238991,-500.0,0.00027397,2]
[312423689,1705870239001,-500.0,0.00027397,2]
[312423691,1705870239010,-500.0,0.00027397,2]
[312423693,1705870239020,-500.0,0.00027397,2]
[312423695,1705870239029,-178.51955219,0.00027397,2]
[312423697,1705870239039,-500.0,0.00027397,2]
[312423699,1705870239049,-500.0,0.00027397,2]
[312423701,1705870239058,-1000.0,0.00027397,2]
[312423703,1705870239067,-503.44840265,0.00027397,2]
[312423705,1705870239076,-733.28,0.00027397,2]
[312423707,1705870239085,-500.0,0.00027397,2]
[312423709,1705870239094,-500.0,0.00027397,2]
[312423711,1705870239103,-1448.33,0.00027397,2]
[312423713,1705870239111,-500.0,0.00027397,2]
[312423715,1705870239120,-500.0,0.00027397,2]
[312423717,1705870239130,-500.0,0.00027397,2]
[312423719,1705870239138,-500.0,0.00027397,2]
[312423721,1705870239147,-500.0,0.00027397,2]
[312423723,1705870239156,-500.0,0.00027397,2]
[312423725,1705870239165,-500.0,0.00027397,2]
[312423726,1705870239175,-500.0,0.00027397,2]
[312423728,1705870239184,-500.0,0.00027397,2]
[312423730,1705870239193,-1035.93563138,0.00027397,2]
[312423732,1705870239203,-500.0,0.00027397,2]
[312423734,1705870239212,-500.0,0.00027397,2]
[312423736,1705870239222,-500.0,0.00027397,2]
[312423738,1705870239231,-500.0,0.00027397,2]
[312423740,1705870239240,-500.0,0.00027397,2]
[312423742,1705870239249,-500.0,0.00027397,2]
[312423744,1705870239258,-500.0,0.00027397,2]
[312423746,1705870239267,-500.0,0.00027397,2]
[312423748,1705870239276,-500.0,0.00027397,2]
[312423750,1705870239285,-346.71546179,0.00027397,2]
[312423752,1705870239294,-500.0,0.00027397,2]
[312423754,1705870239302,-186.61271067,0.00027397,2]
[312423756,1705870239311,-155.0,0.00027397,2]
[312423758,1705870239322,-200.0,0.00027397,2]
[312423760,1705870239332,-500.0,0.00027397,2]
[312423762,1705870239341,-500.0,0.00027397,2]
[312423764,1705870239350,-500.0,0.00027397,2]
[312423766,1705870239359,-500.0,0.00027397,2]
[312423768,1705870239369,-500.0,0.00027397,2]
[312423770,1705870239378,-1053.01,0.00027397,2]
[312423772,1705870239387,-500.0,0.00027397,2]
[312423774,1705870239396,-500.0,0.00027397,2]
[312423776,1705870239405,-500.0,0.00027397,2]
[312423778,1705870239414,-500.0,0.00027397,2]
[312423779,1705870239424,-500.0,0.00027397,2]
[312423780,1705870239433,-586.52,0.00027397,2]
[312423782,1705870239442,-500.0,0.00027397,2]
[312423783,1705870239451,-500.0,0.00027397,2]
[312423785,1705870239461,-542.72,0.00027397,2]
[312423786,1705870239469,-500.0,0.00027397,2]
[312423788,1705870239479,-500.0,0.00027397,2]
[312423790,1705870239488,-1000.0,0.00027397,2]
[312423791,1705870239496,-500.0,0.00027397,2]
[312423793,1705870239505,-500.0,0.00027397,2]
[312423795,1705870239514,-1361.47,0.00027397,2]
[312423797,1705870239523,-966.99,0.00027397,2]
[312423799,1705870239532,-500.0,0.00027397,2]
[312423800,1705870239542,-500.0,0.00027397,2]
[312423802,1705870239550,-500.0,0.00027397,2]
[312423804,1705870239559,-500.0,0.00027397,2]
[312423806,1705870239568,-500.17407216,0.00027397,2]
[312423808,1705870239578,-500.0,0.00027397,2]
[312423810,1705870239587,-500.0,0.00027397,2]
[312423812,1705870239596,-500.0,0.00027397,2]
[312423814,1705870239605,-1774.11,0.00027397,2]
[312423816,1705870239613,-503.3727828,0.00027397,2]
[312423818,1705870239623,-16306.94,0.00027397,2]
[312423820,1705870239631,-500.0,0.00027397,2]
[312423822,1705870239640,-500.0,0.00027397,2]
[312423824,1705870239649,-500.0,0.00027397,2]
[312423826,1705870239658,-555.05,0.00027397,2]
[312423827,1705870239667,-500.0,0.00027397,2]
[312423829,1705870239677,-500.0,0.00027397,2]
[312423831,1705870239687,-500.0,0.00027397,2]
[312423833,1705870239695,-4008.3,0.00027397,2]
[312423835,1705870239706,-500.0,0.00027397,2]
[312423837,1705870239716,-500.0,0.00027397,2]
[312423839,1705870239725,-869.6,0.00027397,2]
[312423841,1705870239734,-500.0,0.00027397,2]
[312423843,1705870239743,-500.0,0.00027397,2]
[312423844,1705870239752,-10212.24,0.00027397,2]
[312423846,1705870239761,-500.0,0.00027397,2]
[312423848,1705870239769,-500.0,0.00027397,2]
[312423849,1705870239779,-500.0,0.00027397,2]
[312423851,1705870239788,-694.63,0.00027397,2]
[312423853,1705870239797,-1499.09,0.00027397,2]
[312423854,1705870239806,-500.0,0.00027397,2]
[312423856,1705870239815,-500.0,0.00027397,2]
[312423858,1705870239825,-500.0,0.00027397,2]
[312423860,1705870239835,-812.99,0.00027397,2]
[312423862,1705870239844,-500.0,0.00027397,2]
[312423863,1705870239854,-500.0,0.00027397,2]
[312423865,1705870239862,-500.0,0.00027397,2]
[312423866,1705870239872,-500.0,0.00027397,2]
[312423868,1705870240001,-1020.81,0.00027397,2]
[312423869,1705870240011,-500.0,0.00027397,2]
[312423870,1705870240021,-668.93,0.00027397,2]
[312423871,1705870240030,-500.0,0.00027397,2]
[312423872,1705870240039,-500.0,0.00027397,2]
[312423873,1705870240050,-10000.0,0.00027397,10]
[312423874,1705870240060,-500.0,0.00027397,2]
[312423875,1705870240069,-5969.67,0.00027397,2]
[312423876,1705870240079,-500.0,0.00027397,2]
[312423877,1705870240088,-500.0,0.00027397,2]
[312423878,1705870240098,-500.0,0.00027397,2]
[312423879,1705870240107,-500.0,0.00027397,2]
[312423880,1705870240117,-763.27,0.00027397,2]
[312423881,1705870240126,-500.0,0.00027397,2]
[312423882,1705870240136,-500.0,0.00027397,2]
[312423883,1705870240146,-237.04279308,0.00027397,2]
[312423884,1705870240155,-1358.34,0.00027397,2]
[312423885,1705870240164,-500.0,0.00027397,2]
[312423886,1705870240174,-500.0,0.00027397,2]
[312423887,1705870240183,-234.44431672,0.00027397,2]
[312423888,1705870240192,-1093.69,0.00027397,2]
[312423889,1705870240201,-500.0,0.00027397,2]
[312423890,1705870240210,-500.0,0.00027397,2]
[312423891,1705870240219,-926.54,0.00027397,2]
[312423893,1705870240229,-500.0,0.00027397,2]
[312423895,1705870240239,-870.73,0.00027397,2]
[312423896,1705870240248,-7335.45,0.00027397,2]
[312423897,1705870240257,-500.0,0.00027397,2]
[312423898,1705870240267,-500.0,0.00027397,2]
[312423899,1705870240276,-500.0,0.00027397,2]
[312423901,1705870240285,-500.0,0.00027397,2]
[312423902,1705870240295,-500.0,0.00027397,2]
[312423903,1705870240304,-4445.83,0.00027397,2]
[312423904,1705870240313,-544.75,0.00027397,2]
[312423905,1705870240323,-558.29816808,0.00027397,2]
[312423906,1705870240332,-1985.27,0.00027397,2]
[312423907,1705870240342,-5659.13,0.00027397,2]
[312423908,1705870240351,-500.0,0.00027397,2]
[312423909,1705870240360,-500.0,0.00027397,2]
[312423910,1705870240370,-761.25,0.00027397,2]
[312423911,1705870240380,-1149.14,0.00027397,2]
[312423912,1705870240389,-500.0,0.00027397,2]
[312423913,1705870240398,-500.0,0.00027397,2]
[312423914,1705870240407,-2380.39,0.00027397,2]
[312423915,1705870240417,-500.0,0.00027397,2]
[312423916,1705870240426,-857.76,0.00027397,2]
[312423917,1705870240436,-581.49926245,0.00027397,2]
[312423918,1705870240446,-272.94732908,0.00027397,2]
[312423919,1705870240455,-500.0,0.00027397,2]
[312423920,1705870240464,-500.0,0.00027397,2]
[312423921,1705870240473,-400.0,0.00027397,2]
[312423922,1705870240483,-500.0,0.00027671,2]
[312423923,1705870240492,-500.0,0.00027671,2]
[312423924,1705870240501,-500.0,0.00027671,2]
[312423925,1705870240510,-500.0,0.00027671,2]
[312423926,1705870240520,-500.0,0.00027671,2]
[312423927,1705870240530,-500.0,0.00027671,2]
[312423928,1705870240539,-643.80145182,0.00027671,2]
[312423929,1705870240548,-500.0,0.00027671,2]
[312423930,1705870240558,-1487.52,0.00027671,2]
[312423931,1705870240567,-647.16,0.00027671,2]
[312423932,1705870240576,-500.0,0.00027671,2]
[312423933,1705870240586,-500.0,0.00027671,2]
[312423934,1705870240595,-1835.17,0.00027671,2]
[312423935,1705870240605,-500.0,0.00027671,2]
[312423936,1705870240616,-500.0,0.00027671,2]
[312423937,1705870240626,-500.0,0.00027671,2]
[312423938,1705870240636,-607.05,0.00027671,2]
[312423939,1705870240646,-500.0,0.00027671,2]
[312423940,1705870240655,-500.0,0.00027671,2]
[312423941,1705870240664,-705.22,0.00027671,2]
[312423942,1705870240674,-500.0,0.00027671,2]
[312423943,1705870240683,-500.0,0.00027671,2]
[312423944,1705870240693,-500.0,0.00027671,2]
[312423945,1705870240703,-500.0,0.00027671,2]
[312423946,1705870240713,-500.0,0.00027671,2]
[312423947,1705870240722,-643.34,0.00027671,2]
[312423948,1705870240731,-202.49219079,0.00027671,2]
[312423949,1705870240741,-500.0,0.00027671,2]
[312423950,1705870240751,-500.0,0.00027671,2]
[312423951,1705870240761,-500.0,0.00027671,2]
[312423952,1705870240771,-500.0,0.00027671,2]
[312423953,1705870240781,-500.0,0.00027671,2]
[312423954,1705870240791,-500.0,0.00027671,2]
[312423955,1705870240800,-500.0,0.00027671,2]
[312423956,1705870240809,-1000.0,0.00027671,2]
[312423957,1705870240819,-733.28,0.00027671,2]
[312423958,1705870240828,-500.0,0.00027671,2]
[312423959,1705870240839,-1448.33,0.00027671,2]
[312423960,1705870240849,-500.0,0.00027671,2]
[312423961,1705870240858,-500.0,0.00027671,2]
[312423962,1705870240868,-500.0,0.00027671,2]
[312423963,1705870240878,-500.0,0.00027671,2]
[312423964,1705870240887,-500.0,0.00027671,2]
[312423965,1705870240897,-500.0,0.00027671,2]
[312423966,1705870240906,-500.0,0.00027671,2]
[312423967,1705870240916,-500.0,0.00027671,2]
[312423968,1705870240926,-500.0,0.00027671,2]
[312423969,1705870240935,-500.0,0.00027671,2]
[312423970,1705870240945,-500.0,0.00027671,2]
[312423971,1705870240954,-500.0,0.00027671,2]
[312423972,1705870240967,-500.0,0.00027671,2]
[312423973,1705870240977,-500.0,0.00027671,2]
[312423974,1705870240986,-500.0,0.00027671,2]
[312423975,1705870240996,-500.0,0.00027671,2]
[312423976,1705870241006,-219.39829432,0.00027671,2]
[312423977,1705870241015,-1053.01,0.00027671,2]
[312423978,1705870241025,-500.0,0.00027671,2]
[312423979,1705870241035,-500.0,0.00027671,2]
[312423980,1705870241044,-500.0,0.00027671,2]
[312423981,1705870241054,-586.52,0.00027671,2]
[312423982,1705870241063,-500.0,0.00027671,2]
[312423983,1705870241073,-500.0,0.00027671,2]
[312423984,1705870241083,-500.0,0.00027671,2]
[312423986,1705870241092,-542.72,0.00027671,2]
[312423988,1705870241102,-500.0,0.00027671,2]
[312423990,1705870241110,-500.0,0.00027671,2]
[312423992,1705870241121,-500.0,0.00027671,2]
[312423993,1705870241130,-1361.47,0.00027671,2]
[312423995,1705870241140,-966.99,0.00027671,2]
[312423997,1705870241149,-500.0,0.00027671,2]
[312423999,1705870241158,-500.0,0.00027671,2]
[312424001,1705870241167,-500.0,0.00027671,2]
[312424003,1705870241176,-500.0,0.00027671,2]
[312424005,1705870241185,-500.0,0.00027671,2]
[312424007,1705870241194,-500.0,0.00027671,2]
[312424009,1705870241204,-1774.11,0.00027671,2]
[312424011,1705870241213,-16306.94,0.00027671,2]
[312424013,1705870241223,-500.0,0.00027671,2]
[312424015,1705870241233,-500.0,0.00027671,2]
[312424017,1705870241243,-555.05,0.00027671,2]
[312424019,1705870241253,-500.0,0.00027671,2]
[312424021,1705870241263,-500.0,0.00027671,2]
[312424023,1705870241272,-500.0,0.00027671,2]
[312424025,1705870241283,-4008.3,0.00027671,2]
[312424027,1705870241293,-500.0,0.00027671,2]
[312424029,1705870241304,-500.0,0.00027671,2]
[312424031,1705870241314,-869.6,0.00027671,2]
[312424033,1705870241324,-500.0,0.00027671,2]
[312424035,1705870241334,-500.0,0.00027671,2]
[312424037,1705870241347,-10212.24,0.00027671,2]
[312424039,1705870241358,-500.0,0.00027671,2]
[312424041,1705870241370,-500.0,0.00027671,2]
[312424043,1705870241380,-694.63,0.00027671,2]
[312424045,1705870241393,-1499.09,0.00027671,2]
[312424047,1705870241402,-500.0,0.00027671,2]
[312424049,1705870241413,-812.99,0.00027671,2]
[312424051,1705870241423,-500.0,0.00027671,2]
[312424053,1705870241432,-500.0,0.00027671,2]
[312424055,1705870241441,-1020.81,0.00027671,2]
[312424057,1705870241452,-668.93,0.00027671,2]
[312424059,1705870241462,-500.0,0.00027671,2]
[312424061,1705870241471,-500.0,0.00027671,2]
[312424063,1705870241481,-5969.67,0.00027671,2]
[312424065,1705870241490,-500.0,0.00027671,2]
[312424067,1705870241500,-500.0,0.00027671,2]
[312424069,1705870241509,-763.27,0.00027671,2]
[312424071,1705870241518,-500.0,0.00027671,2]
[312424073,1705870241528,-500.0,0.00027671,2]
[312424075,1705870241537,-1358.34,0.00027671,2]
[312424077,1705870241546,-500.0,0.00027671,2]
[312424079,1705870241556,-1093.69,0.00027671,2]
[312424081,1705870241565,-926.54,0.00027671,2]
[312424083,1705870241575,-870.73,0.00027671,2]
[312424085,1705870241584,-7335.45,0.00027671,2]
[312424087,1705870241593,-500.0,0.00027671,2]
[312424089,1705870241603,-500.0,0.00027671,2]
[312424091,1705870241613,-500.0,0.00027671,2]
[312424093,1705870241626,-4445.83,0.00027671,2]
[312424095,1705870241635,-544.75,0.00027671,2]
[312424097,1705870241644,-1985.27,0.00027671,2]
[312424099,1705870241653,-5659.13,0.00027671,2]
[312424101,1705870241662,-500.0,0.00027671,2]
[312424103,1705870241672,-500.0,0.00027671,2]
[312424105,1705870241682,-761.25,0.00027671,2]
[312424107,1705870241691,-1149.14,0.00027671,2]
[312424109,1705870241701,-2380.39,0.00027671,2]
[312424111,1705870241711,-857.76,0.00027671,2]
[312424113,1705870241720,-500.0,0.00027671,2]
[312424115,1705870241730,-500.0,0.00027671,2]
[312424117,1705870241740,-9118.80664487,0.0002775,4]
[312424119,1705870241749,-154.95340266,0.00027764,2]
[312424121,1705870241759,-974.37672669,0.00027822,4]
[312424123,1705870241767,-5503.97139678,0.00027824,3]
[312424125,1705870241776,-11302.84365212,0.00027826,3]
[312424127,1705870241786,-163.0,0.00027914,2]
[312424129,1705870241795,-150.0,0.00027914,2]
[312424131,1705870241805,-9463.2748927,0.00027935,2]
[312424133,1705870241814,-500.0,0.00027945,2]
[312424135,1705870241823,-500.0,0.00027945,2]
[312424137,1705870241832,-500.0,0.00027945,2]
[312424139,1705870241842,-500.0,0.00027945,2]
[312424140,1705870241851,-500.0,0.00027945,2]
[312424142,1705870241860,-500.0,0.00027945,2]
[312424144,1705870241871,-500.0,0.00027945,2]
[312424146,1705870241880,-1487.52,0.00027945,2]
[312424148,1705870241889,-647.16,0.00027945,2]
[312424150,1705870241898,-500.0,0.00027945,2]
[312424152,1705870241907,-500.0,0.00027945,2]
[312424154,1705870241918,-1835.17,0.00027945,2]
[312424156,1705870241928,-500.0,0.00027945,2]
[312424158,1705870241937,-500.0,0.00027945,2]
[312424160,1705870241946,-500.0,0.00027945,2]
[312424162,1705870241960,-607.05,0.00027945,2]
[312424164,1705870241970,-500.0,0.00027945,2]
[312424165,1705870241980,-500.0,0.00027945,2]
[312424166,1705870241990,-705.22,0.00027945,2]
[312424167,1705870241999,-500.0,0.00027945,2]
[312424168,1705870242011,-500.0,0.00027945,2]
[312424169,1705870242020,-500.0,0.00027945,2]
[312424170,1705870242030,-643.34,0.00027945,2]
[312424171,1705870242040,-500.0,0.00027945,2]
[312424172,1705870242050,-500.0,0.00027945,2]
[312424173,1705870242060,-500.0,0.00027945,2]
[312424174,1705870242070,-500.0,0.00027945,2]
[312424175,1705870242080,-500.0,0.00027945,2]
[312424176,1705870242089,-500.0,0.00027945,2]
[312424177,1705870242099,-500.0,0.00027945,2]
[312424178,1705870242109,-1000.0,0.00027945,2]
[312424179,1705870242118,-733.28,0.00027945,2]
[312424180,1705870242128,-500.0,0.00027945,2]
[312424181,1705870242137,-1448.33,0.00027945,2]
[312424182,1705870242147,-500.0,0.00027945,2]
[312424183,1705870242157,-500.0,0.00027945,2]
[312424184,1705870242166,-546.07773803,0.00027945,2]
[312424185,1705870242175,-500.0,0.00027945,2]
[312424186,1705870242184,-500.0,0.00027945,2]
[312424187,1705870242193,-500.0,0.00027945,2]
[312424189,1705870242202,-512.50623965,0.00027945,2]
[312424190,1705870242211,-500.0,0.00027945,2]
[312424191,1705870242220,-500.0,0.00027945,2]
[312424192,1705870242230,-500.0,0.00027945,2]
[312424194,1705870242239,-234.05683702,0.00027945,2]
[312424196,1705870242249,-500.0,0.00027945,2]
[312424198,1705870242258,-500.0,0.00027945,2]
[312424200,1705870242268,-500.0,0.00027945,2]
[312424202,1705870242277,-1053.01,0.00027945,2]
[312424204,1705870242286,-500.0,0.00027945,2]
[312424206,1705870242295,-500.0,0.00027945,2]
[312424208,1705870242305,-586.52,0.00027945,2]
[312424210,1705870242314,-500.0,0.00027945,2]
[312424212,1705870242323,-500.0,0.00027945,2]
[312424214,1705870242332,-542.72,0.00027945,2]
[312424216,1705870242342,-500.0,0.00027945,2]
[312424218,1705870242351,-500.0,0.00027945,2]
[312424220,1705870242360,-500.0,0.00027945,2]
[312424224,1705870242394,-1361.47,0.00027945,2]
[312424226,1705870242402,-966.99,0.00027945,2]
[312424228,1705870242411,-500.0,0.00027945,2]
[312424230,1705870242420,-500.0,0.00027945,2]
[312424231,1705870242429,-500.0,0.00027945,2]
[312424233,1705870242438,-1774.11,0.00027945,2]
[312424235,1705870242448,-16306.94,0.00027945,2]
[312424237,1705870242457,-500.0,0.00027945,2]
[312424239,1705870242466,-500.0,0.00027945,2]
[312424241,1705870242475,-555.05,0.00027945,2]
[312424243,1705870242484,-500.0,0.00027945,2]
[312424245,1705870242492,-500.0,0.00027945,2]
[312424247,1705870242501,-500.0,0.00027945,2]
[312424249,1705870242510,-4008.3,0.00027945,2]
[312424251,1705870242519,-500.0,0.00027945,2]
[312424253,1705870242529,-500.0,0.00027945,2]
[312424255,1705870242538,-869.6,0.00027945,2]
[312424257,1705870242547,-500.0,0.00027945,2]
[312424259,1705870242558,-500.0,0.00027945,2]
[312424260,1705870242567,-10212.24,0.00027945,2]
[312424262,1705870242577,-500.0,0.00027945,2]
[312424264,1705870242586,-500.0,0.00027945,2]
[312424266,1705870242595,-694.63,0.00027945,2]
[312424268,1705870242604,-1499.09,0.00027945,2]
[312424270,1705870242613,-500.0,0.00027945,2]
[312424272,1705870242624,-812.99,0.00027945,2]
[312424274,1705870242633,-237.28341523,0.00027945,2]
[312424276,1705870242642,-1020.81,0.00027945,2]
[312424278,1705870242652,-668.93,0.00027945,2]
[312424280,1705870242661,-500.0,0.00027945,2]
[312424282,1705870242670,-500.0,0.00027945,2]
[312424284,1705870242679,-4746.17825288,0.00027945,2]
[312424287,1705870242697,-1223.49174712,0.00027945,2]
[312424289,1705870242706,-500.0,0.00027945,2]
[312424291,1705870242715,-500.0,0.00027945,2]
[312424293,1705870242724,-763.27,0.00027945,2]
[312424295,1705870242734,-500.0,0.00027945,2]
[312424297,1705870242743,-500.0,0.00027945,2]
[312424299,1705870242753,-1358.34,0.00027945,2]
[312424300,1705870242761,-500.0,0.00027945,2]
[312424302,1705870242771,-1093.69,0.00027945,2]
[312424304,1705870242781,-926.54,0.00027945,2]
[312424306,1705870242791,-870.73,0.00027945,2]
[312424308,1705870242804,-7335.45,0.00027945,2]
[312424310,1705870242813,-500.0,0.00027945,2]
[312424312,1705870242822,-500.0,0.00027945,2]
[312424314,1705870242832,-500.0,0.00027945,2]
[312424316,1705870242842,-544.75,0.00027945,2]
[312424318,1705870242853,-4445.83,0.00027945,2]
[312424320,1705870242863,-1985.27,0.00027945,2]
[312424322,1705870242875,-5659.13,0.00027945,2]
[312424324,1705870242886,-500.0,0.00027945,2]
[312424326,1705870242897,-761.25,0.00027945,2]
[312424328,1705870242907,-1149.14,0.00027945,2]
[312424330,1705870242916,-2380.39,0.00027945,2]
[312424332,1705870242926,-857.76,0.00027945,2]
[312424334,1705870242937,-500.0,0.00027945,2]
[312424336,1705870242947,-526.81045718,0.00027945,2]
[312424338,1705870242957,-289.71789283,0.00028,2]
[312424340,1705870242971,-1500.0,0.00028,2]
[312424342,1705870242982,-391.0,0.00028069,15]
[312424344,1705870242991,-7842.29113759,0.00028217,2]
[312424346,1705870243002,-154.86062544,0.00028217,2]
[312424347,1705870243014,-412.29406912,0.00028217,2]
[312424349,1705870243025,-301.77611122,0.00028218,2]
[312424351,1705870243035,-154.86062544,0.00028218,2]
[312424353,1705870243046,-262.19709632,0.00028218,2]
[312424355,1705870243055,-500.0,0.00028219,2]
[312424357,1705870243065,-500.0,0.00028219,2]
[312424359,1705870243075,-500.0,0.00028219,2]
[312424361,1705870243084,-404.45076807,0.00028219,2]
[312424363,1705870243094,-500.0,0.00028219,2]
[312424365,1705870243103,-500.0,0.00028219,2]
[312424367,1705870243112,-500.0,0.00028219,2]
[312424369,1705870243123,-1487.52,0.00028219,2]
[312424371,1705870243134,-647.16,0.00028219,2]
[312424373,1705870243144,-500.0,0.00028219,2]
[312424375,1705870243154,-1835.17,0.00028219,2]
[312424377,1705870243163,-500.0,0.00028219,2]
[312424379,1705870243173,-500.0,0.00028219,2]
[312424381,1705870243182,-607.05,0.00028219,2]
[312424383,1705870243193,-500.0,0.00028219,2]
[312424385,1705870243202,-500.0,0.00028219,2]
[312424387,1705870243212,-705.22,0.00028219,2]
[312424389,1705870243221,-500.0,0.00028219,2]
[312424391,1705870243231,-500.0,0.00028219,2]
[312424393,1705870243240,-500.0,0.00028219,2]
[312424395,1705870243249,-643.34,0.00028219,2]
[312424397,1705870243258,-500.0,0.00028219,2]
[312424399,1705870243267,-500.0,0.00028219,2]
[312424401,1705870243277,-500.0,0.00028219,2]
[312424403,1705870243286,-500.0,0.00028219,2]
[312424405,1705870243295,-500.0,0.00028219,2]
[312424407,1705870243303,-500.0,0.00028219,2]
[312424409,1705870243313,-500.0,0.00028219,2]
[312424411,1705870243322,-733.28,0.00028219,2]
[312424413,1705870243332,-500.0,0.00028219,2]
[312424415,1705870243341,-1448.33,0.00028219,2]
[312424417,1705870243350,-500.0,0.00028219,2]
[312424418,1705870243360,-500.0,0.00028219,2]
[312424421,1705870243370,-500.0,0.00028219,2]
[312424422,1705870243379,-500.0,0.00028219,2]
[312424425,1705870243390,-500.0,0.00028219,2]
[312424426,1705870243400,-500.0,0.00028219,2]
[312424428,1705870243409,-500.0,0.00028219,2]
[312424431,1705870243419,-500.0,0.00028219,2]
[312424432,1705870243428,-500.0,0.00028219,2]
[312424434,1705870243438,-500.0,0.00028219,2]
[312424437,1705870243448,-500.0,0.00028219,2]
[312424438,1705870243457,-1053.01,0.00028219,2]
[312424441,1705870243467,-500.0,0.00028219,2]
[312424444,1705870243476,-500.0,0.00028219,2]
[312424446,1705870243485,-586.52,0.00028219,2]
[312424448,1705870243495,-500.0,0.00028219,2]
[312424450,1705870243504,-500.0,0.00028219,2]
[312424452,1705870243514,-542.72,0.00028219,2]
[312424454,1705870243523,-500.0,0.00028219,2]
[312424457,1705870243533,-500.0,0.00028219,2]
[312424459,1705870243543,-500.0,0.00028219,2]
[312424460,1705870243552,-1361.47,0.00028219,2]
[312424463,1705870243562,-966.99,0.00028219,2]
[312424465,1705870243572,-500.0,0.00028219,2]
[312424467,1705870243581,-500.0,0.00028219,2]
[312424469,1705870243590,-500.0,0.00028219,2]
[312424470,1705870243599,-1774.11,0.00028219,2]
[312424473,1705870243608,-16306.94,0.00028219,2]
[312424474,1705870243619,-305.83903355,0.00028219,2]
[312424485,1705870243715,-194.16096645,0.00028219,2]
[312424487,1705870243724,-500.0,0.00028219,2]
[312424489,1705870243734,-555.05,0.00028219,2]
[312424491,1705870243743,-500.0,0.00028219,2]
[312424494,1705870243753,-500.0,0.00028219,2]
[312424495,1705870243762,-349.67582152,0.00028219,2]
[312424503,1705870243830,-150.0,0.00027914,2]
[312424505,1705870243840,-150.32417848,0.00028219,2]
[312424507,1705870243849,-4008.3,0.00028219,2]
[312424509,1705870243859,-500.0,0.00028219,2]
[312424511,1705870243870,-500.0,0.00028219,2]
[312424513,1705870243880,-869.6,0.00028219,2]
[312424515,1705870243889,-500.0,0.00028219,2]
[312424517,1705870243898,-500.0,0.00028219,2]
[312424519,1705870243908,-1233.76182105,0.00028219,2]
[312424521,1705870243919,-2721.14944895,0.00028219,2]
[312424783,1705870246665,-1589.24944099,0.00027396,2]
[312424785,1705870246675,-454.38262622,0.00027397,2]
[312429077,1705871240088,-154.75239617,0.00021089,4]
[312429078,1705871240110,-300.0,0.0002109,2]
[312429079,1705871240131,-2621.04345623,0.0002109,2]
[312429080,1705871240151,-623.86586286,0.00024656,2]
[312429081,1705871240171,-313.2659022,0.00025274,2]
[312429082,1705871240191,-3957.70349902,0.00025814,2]
[312429134,1705871432432,-154.75239617,0.00024656,4]
[312429137,1705871432442,-1258.41923849,0.00026005,2]
[312429140,1705871432453,-439.565,0.00026005,2]
[312429231,1705871438570,-196.69132072,0.00024654,2]